[Event "NOR-ch Various 2019"]
[Site "Larvik"]
[Date "2019.07.08"]
[Round "3.25"]
[White "Myagmarsuren, Evsuld"]
[Black "Brattgjerd, Isak Vinh"]
[Result "0-1"]
[ECO "B76"]
[WhiteElo "1289"]
[BlackElo "1571"]
[Annotator "NA"]
[PlyCount "116"]
[EventDate "2019.07.06"]
[EventType "swiss"]
[EventCountry "NOR"]
[SourceTitle "playchess.com"]
[Source "ChessBase"]
[SourceQuality "1"]
[TimeControl "40/5400+30:1800+30"]

1. e4 {[%emt 0:00:00]} c5 {[%emt 0:04:09]} 2. Nf3 {[%emt 0:00:00]} d6 {[%emt 0:00:13]} 3. d4 {[%emt 0:00:21]} cxd4 {[%emt 0:00:07]} 4. Nxd4 {[%emt 0:00:35]} Nf6 {[%emt 0:00:07]} 5. Nc3 {[%emt 0:00:17]} g6 {[%emt 0:00:16]} 6. Be3 {[%emt 0:00:28]} Bg7 {[%emt 0:00:19]} 7. f3 {[%emt 0:00:35]} O-O {[%emt 0:00:17]} 8. Qd2 {[%emt 0:00:13]} Nc6 {[%emt 0:00:08]} 9. Nb3 {[%emt 0:08:25]} Bd7 {[%emt 0:02:22]} 10. g4 {[%emt 0:02:33]} Ne5 {[%emt 0:03:51]} 11. Be2 {[%emt 0:02:56]} b5 {[%emt 0:02:20]} 12. g5 {[%emt 0:14:34]} Nh5 {[%emt 0:07:31]} 13. f4 {[%emt 0:01:41]} Nc4 {[%emt 0:03:41]} 14. Bxc4 {[%emt 0:02:24]} bxc4 {[%emt 0:05:41]} 15. Nd4 {[%emt 0:01:22]} Rc8 {[%emt 0:13:41]} 16. Nde2 {[%emt 0:04:52]} a6 {[%emt 0:11:45]} 17. Ng3 {[%emt 0:00:23]} Bg4 {[%emt 0:01:06]} 18. Nxh5 {[%emt 0:02:58]} Bxh5 {[%emt 0:00:36]} 19. h4 {[%emt 0:00:30]} Rb8 {[%emt 0:01:44]} 20. Rb1 {[%emt 0:01:33]} Qa5 {[%emt 0:02:05]} 21. Nd5 {[%emt 0:05:39]} Qxd2+ {[%emt 0:07:21]} 22. Kxd2 {[%emt 0:01:37]} e6 {[%emt 0:00:44]} 23. Nf6+ {[%emt 0:00:53]} Bxf6 {[%emt 0:00:10]} 24. gxf6 {[%emt 0:00:08]} Bf3 {[%emt 0:00:08]} 25. Rhg1 {[%emt 0:00:44]} Bxe4 {[%emt 0:00:17]} 26. h5 {[%emt 0:00:25]} Rfc8 {[%emt 0:01:49]} 27. Kc3 {[%emt 0:04:20]} Rb5 {[%emt 0:01:47]} 28. hxg6 {[%emt 0:01:24]} Bxg6 {[%emt 0:01:46]} 29. Rg5 {[%emt 0:00:30]} Rxg5 {[%emt 0:01:23]} 30. fxg5 {[%emt 0:00:15]} Kf8 {[%emt 0:00:11]} 31. Rd1 {[%emt 0:00:12]} d5 {[%emt 0:00:16]} 32. Rd2 {[%emt 0:00:29]} Ke8 {[%emt 0:00:45]} 33. Bf4 {[%emt 0:00:31]} Rc6 {[%emt 0:06:07]} 34. Be3 {[%emt 0:08:08]} a5 {[%emt 0:00:00]} 35. a3 {[%emt 0:02:54]} Be4 {[%emt 0:00:00]} 36. Bd4 {[%emt 0:01:06]} Kd7 {[%emt 0:00:51]} 37. Rh2 {[%emt 0:02:11]} Kd6 {[%emt 0:00:43]} 38. Ba7 {[%emt 0:04:45]} e5 {[%emt 0:00:34]} 39. Re2 {[%emt 0:00:34]} Ke6 {[%emt 0:01:23]} 40. b3 {[%emt 0:02:40]} cxb3+ {[%emt 0:00:52]} 41. Kxb3 {[%emt 0:30:11]} Rc7 {[%emt 0:30:29]} 42. Be3 {[%emt 0:01:32]} Rc4 {[%emt 0:01:37]} 43. a4 {[%emt 0:01:47]} Rb4+ {[%emt 0:01:27]} 44. Ka3 {[%emt 0:00:24]} Kf5 {[%emt 0:01:19]} 45. c3 {[%emt 0:04:15]} Rb7 {[%emt 0:01:14]} 46. Rh2 {[%emt 0:01:11]} Kg4 {[%emt 0:00:49]} 47. Rf2 {[%emt 0:01:17]} Rb1 {[%emt 0:02:58]} 48. Ka2 {[%emt 0:01:28]} Rd1 {[%emt 0:01:22]} 49. Kb2 {[%emt 0:00:24]} Kg3 {[%emt 0:00:41]} 50. Rd2 {[%emt 0:00:45]} Rf1 {[%emt 0:00:30]} 51. Bc5 {[%emt 0:00:46]} Rf5 {[%emt 0:01:35]} 52. Bb6 {[%emt 0:02:48]} Rxg5 {[%emt 0:01:08]} 53. Bxa5 {[%emt 0:00:19]} h5 {[%emt 0:00:13]} 54. Bb6 {[%emt 0:00:44]} h4 {[%emt 0:00:28]} 55. Bf2+ {[%emt 0:00:10]} Kg4 {[%emt 0:00:36]} 56. Rd1 {[%emt 0:00:20]} h3 {[%emt 0:01:26]} 57. Bg1 {[%emt 0:05:56]} Kf3 {[%emt 0:02:07]} 58. Bh2 {[%emt 0:00:30]} Rg2+ {[%emt 0:00:05]} 0-1

[Event "NOR-ch Various 2019"]
[Site "Larvik"]
[Date "2019.07.08"]
[Round "3.26"]
[White "Kvendseth, Thyra"]
[Black "Hansen, Tor Magnus"]
[Result "1/2-1/2"]
[ECO "D30"]
[WhiteElo "1967"]
[BlackElo "1558"]
[Annotator "NA"]
[PlyCount "140"]
[EventDate "2019.07.06"]
[EventType "swiss"]
[EventCountry "NOR"]
[SourceTitle "playchess.com"]
[Source "ChessBase"]
[SourceQuality "1"]
[TimeControl "40/5400+30:1800+30"]

1. d4 {[%emt 0:00:12]} d5 {[%emt 0:00:00]} 2. c4 {[%emt 0:00:00]} c6 {[%emt 0:00:00]} 3. e3 {[%emt 0:00:00]} Nf6 {[%emt 0:00:08]} 4. Nf3 {[%emt 0:00:00]} e6 {[%emt 0:00:22]} 5. Bd3 {[%emt 0:01:26]} dxc4 {[%emt 0:00:12]} 6. Bxc4 {[%emt 0:00:07]} b5 {[%emt 0:01:54]} 7. Be2 {[%emt 0:01:28]} Bb7 {[%emt 0:01:27]} 8. Nbd2 {[%emt 0:05:41]} Nbd7 {[%emt 0:02:54]} 9. O-O {[%emt 0:04:10]} a6 {[%emt 0:05:08]} 10. e4 {[%emt 0:07:40]} c5 {[%emt 0:01:05]} 11. e5 {[%emt 0:00:24]} Nd5 {[%emt 0:00:50]} 12. Ne4 {[%emt 0:01:02]} cxd4 {[%emt 0:06:02]} 13. Qxd4 {[%emt 0:01:07]} Qb6 {[%emt 0:00:54]} 14. Qxb6 {[%emt 0:13:20]} N5xb6 {[%emt 0:04:06]} 15. Ned2 {[%emt 0:04:50]} Be7 {[%emt 0:04:59]} 16. Nb3 {[%emt 0:00:26]} Nc4 {[%emt 0:01:38]} 17. Bxc4 {[%emt 0:01:02]} bxc4 {[%emt 0:00:32]} 18. Nbd4 {[%emt 0:00:16]} Bc5 {[%emt 0:02:35]} 19. Re1 {[%emt 0:02:59]} Rd8 {[%emt 0:05:35]} 20. Bg5 {[%emt 0:04:12]} Bxf3 {[%emt 0:05:04]} 21. Nxf3 {[%emt 0:01:10]} Rc8 {[%emt 0:03:59]} 22. Rac1 {[%emt 0:02:12]} h6 {[%emt 0:01:26]} 23. Bd2 {[%emt 0:01:49]} Ke7 {[%emt 0:01:53]} 24. Re4 {[%emt 0:01:58]} Rhd8 {[%emt 0:15:57]} 25. Ba5 {[%emt 0:06:57]} Bb6 {[%emt 0:01:19]} 26. Bb4+ {[%emt 0:00:27]} Ke8 {[%emt 0:01:39]} 27. g3 {[%emt 0:04:06]} Nc5 {[%emt 0:08:18]} 28. Rexc4 {[%emt 0:01:04]} Rd5 {[%emt 0:00:36]} 29. Nd4 {[%emt 0:07:28]} Kd7 {[%emt 0:04:01]} 30. Nf3 {[%emt 0:06:53]} Rc7 {[%emt 0:02:49]} 31. Rf4 {[%emt 0:08:44]} Ke8 {[%emt 0:00:56]} 32. Rfc4 {[%emt 0:01:35]} Kd7 {[%emt 0:00:26]} 33. Rg4 {[%emt 0:00:32]} g6 {[%emt 0:04:14]} 34. Rh4 {[%emt 0:01:28]} Nd3 {[%emt 0:01:52]} 35. Rxc7+ {[%emt 0:03:20]} Bxc7 {[%emt 0:00:12]} 36. Bc3 {[%emt 0:01:15]} Nxe5 {[%emt 0:00:48]} 37. Nxe5+ {[%emt 0:02:24]} Bxe5 {[%emt 0:00:17]} 38. Bxe5 {[%emt 0:00:43]} Rxe5 {[%emt 0:00:15]} 39. Kf1 {[%emt 0:00:15]} h5 {[%emt 0:00:13]} 40. Ra4 {[%emt 0:00:54]} a5 {[%emt 0:00:18]} 41. b4 {[%emt 0:32:40]} axb4 {[%emt 0:31:34]} 42. Rxb4 {[%emt 0:00:06]} Kc6 {[%emt 0:03:53]} 43. Rf4 {[%emt 0:00:00]} f5 {[%emt 0:00:00]} 44. h4 {[%emt 0:00:00]} Ra5 {[%emt 0:00:00]} 45. Rc4+ {[%emt 0:00:00]} Kb5 {[%emt 0:00:00]} 46. Rc8 {[%emt 0:00:00]} Ra6 {[%emt 0:00:00]} 47. Kg2 {[%emt 0:00:00]} e5 {[%emt 0:00:00]} 48. Rc2 {[%emt 0:00:00]} e4 {[%emt 0:00:00]} 49. Kf1 {[%emt 0:00:00]} g5 {[%emt 0:00:00]} 50. hxg5 {[%emt 0:00:00]} Rg6 {[%emt 0:00:00]} 51. Rc8 {[%emt 0:00:00]} Rxg5 {[%emt 0:00:00]} 52. Rf8 {[%emt 0:00:00]} e3 {[%emt 0:00:00]} 53. fxe3 {[%emt 0:00:00]} Rxg3 {[%emt 0:00:00]} 54. Rxf5+ {[%emt 0:00:00]} Kc4 {[%emt 0:00:00]} 55. Kf2 {[%emt 0:00:00]} Rh3 {[%emt 0:00:00]} 56. Rf4+ {[%emt 0:00:00]} Kd5 {[%emt 0:00:00]} 57. a4 {[%emt 0:00:00]} Ke5 {[%emt 0:00:00]} 58. a5 {[%emt 0:00:00]} Rh2+ {[%emt 0:00:00]} 59. Kg3 {[%emt 0:00:00]} Ra2 {[%emt 0:00:00]} 60. Rh4 {[%emt 0:00:00]} Kf5 {[%emt 0:00:00]} 61. Rh2 {[%emt 0:00:00]} Ra3 {[%emt 0:00:00]} 62. Rxh5+ {[%emt 0:00:00]} Ke4 {[%emt 0:00:00]} 63. Kg4 {[%emt 0:00:00]} Ra4 {[%emt 0:00:00]} 64. Rf5 {[%emt 0:00:00]} Kxe3+ {[%emt 0:00:55]} 65. Kg5 {[%emt 0:00:00]} Ra1 {[%emt 0:01:22]} 66. Kf6 {[%emt 0:00:58]} Kd4 {[%emt 0:00:29]} 67. Ke6 {[%emt 0:00:23]} Kc4 {[%emt 0:00:26]} 68. Kd6 {[%emt 0:00:10]} Kb4 {[%emt 0:00:23]} 69. Kc6 {[%emt 0:00:05]} Rxa5 {[%emt 0:00:20]} 70. Rxa5 {[%emt 0:00:03]} Kxa5 {[%emt 0:00:49]} 1/2-1/2

[Event "NOR-ch Various 2019"]
[Site "Larvik"]
[Date "2019.07.08"]
[Round "3.27"]
[White "Kristiansen, Snorre"]
[Black "Schouten, Mathias Lind"]
[Result "0-1"]
[ECO "B09"]
[WhiteElo "1804"]
[BlackElo "1961"]
[Annotator "NA"]
[PlyCount "138"]
[EventDate "2019.07.06"]
[EventType "swiss"]
[EventCountry "NOR"]
[SourceTitle "playchess.com"]
[Source "ChessBase"]
[SourceQuality "1"]
[TimeControl "40/5400+30:1800+30"]

1. d4 {[%emt 0:00:00]} c5 {[%emt 0:00:00]} 2. d5 {[%emt 0:00:00]} Nf6 {[%emt 0:00:00]} 3. Nc3 {[%emt 0:00:00]} d6 {[%emt 0:00:00]} 4. e4 {[%emt 0:00:00]} g6 {[%emt 0:00:00]} 5. f4 {[%emt 0:00:00]} Bg7 {[%emt 0:00:16]} 6. Bb5+ {[%emt 0:00:15]} Bd7 {[%emt 0:00:07]} 7. e5 {[%emt 0:08:57]} Ng8 {[%emt 0:08:10]} 8. Nf3 {[%emt 0:06:45]} Bxb5 {[%emt 0:06:54]} 9. Nxb5 {[%emt 0:01:06]} a6 {[%emt 0:00:03]} 10. Nc3 {[%emt 0:02:46]} Nh6 {[%emt 0:02:27]} 11. O-O {[%emt 0:03:49]} O-O {[%emt 0:00:02]} 12. Ne4 {[%emt 0:10:08]} b5 {[%emt 0:05:07]} 13. Neg5 {[%emt 0:08:01]} Qb6 {[%emt 0:03:24]} 14. e6 {[%emt 0:11:11]} f5 {[%emt 0:00:22]} 15. h3 {[%emt 0:04:33]} a5 {[%emt 0:03:35]} 16. Rb1 {[%emt 0:06:04]} Na6 {[%emt 0:04:28]} 17. Be3 {[%emt 0:04:21]} Rfb8 {[%emt 0:03:21]} 18. c3 {[%emt 0:02:51]} Qb7 {[%emt 0:02:14]} 19. Qd2 {[%emt 0:02:08]} Rc8 {[%emt 0:08:59]} 20. Rfd1 {[%emt 0:03:53]} Rab8 {[%emt 0:01:38]} 21. Kh2 {[%emt 0:04:14]} a4 {[%emt 0:06:07]} 22. Ne1 {[%emt 0:06:03]} Nc7 {[%emt 0:02:55]} 23. Nef3 {[%emt 0:02:46]} Na8 {[%emt 0:00:40]} 24. b3 {[%emt 0:03:31]} axb3 {[%emt 0:00:19]} 25. axb3 {[%emt 0:00:10]} b4 {[%emt 0:00:37]} 26. c4 {[%emt 0:01:39]} Nc7 {[%emt 0:03:19]} 27. Qc2 {[%emt 0:01:32]} Ra8 {[%emt 0:01:37]} 28. Bc1 {[%emt 0:00:44]} Ne8 {[%emt 0:00:08]} 29. Bb2 {[%emt 0:00:24]} Ra2 {[%emt 0:00:05]} 30. Qc1 {[%emt 0:01:47]} Bxb2 {[%emt 0:00:06]} 31. Rxb2 {[%emt 0:00:06]} Rca8 {[%emt 0:00:09]} 32. Qc2 {[%emt 0:01:29]} Qa7 {[%emt 0:01:47]} 33. Rdb1 {[%emt 0:01:01]} Nf6 {[%emt 0:03:49]} 34. Ne1 {[%emt 0:01:45]} Kg7 {[%emt 0:03:48]} 35. Nd3 {[%emt 0:01:51]} Nhg8 {[%emt 0:00:17]} 36. Nf2 {[%emt 0:00:41]} Qa3 {[%emt 0:01:05]} 37. Rxa2 {[%emt 0:00:59]} Qxa2 {[%emt 0:00:04]} 38. Rb2 {[%emt 0:00:11]} Qa3 {[%emt 0:00:28]} 39. Rb1 {[%emt 0:00:55]} Qa2 {[%emt 0:00:19]} 40. Rb2 {[%emt 0:00:10]} Qa1 {[%emt 0:00:01]} 41. Nf3 {[%emt 0:16:52]} Ne4 {[%emt 0:05:00]} 42. g4 {[%emt 0:06:34]} Nxf2 {[%emt 0:04:55]} 43. Qxf2 {[%emt 0:00:07]} fxg4 {[%emt 0:00:08]} 44. hxg4 {[%emt 0:04:44]} Nf6 {[%emt 0:00:04]} 45. Kh3 {[%emt 0:00:56]} Qh1+ {[%emt 0:16:45]} 46. Nh2 {[%emt 0:00:35]} Ra1 {[%emt 0:01:11]} 47. Qg2 {[%emt 0:03:45]} Qc1 {[%emt 0:01:33]} 48. Qd2 {[%emt 0:00:50]} Qxd2 {[%emt 0:00:27]} 49. Rxd2 {[%emt 0:00:02]} Rb1 {[%emt 0:00:06]} 50. Rd3 {[%emt 0:00:42]} Ne4 {[%emt 0:00:03]} 51. Re3 {[%emt 0:00:47]} Nc3 {[%emt 0:00:15]} 52. Nf3 {[%emt 0:00:25]} Rxb3 {[%emt 0:00:19]} 53. Nd2 {[%emt 0:00:43]} Rb2 {[%emt 0:00:04]} 54. Ne4 {[%emt 0:00:33]} Nxe4 {[%emt 0:00:23]} 55. Rxe4 {[%emt 0:00:01]} Rd2 {[%emt 0:01:40]} 56. Re1 {[%emt 0:01:00]} Rc2 {[%emt 0:01:29]} 57. Ra1 {[%emt 0:00:21]} Rxc4 {[%emt 0:01:22]} 58. Ra7 {[%emt 0:00:02]} b3 {[%emt 0:00:20]} 59. Rxe7+ {[%emt 0:00:24]} Kf8 {[%emt 0:00:04]} 60. Ra7 {[%emt 0:01:08]} b2 {[%emt 0:08:24]} 61. Ra8+ {[%emt 0:00:02]} Ke7 {[%emt 0:00:07]} 62. Ra7+ {[%emt 0:00:04]} Kd8 {[%emt 0:00:07]} 63. Ra8+ {[%emt 0:00:11]} Kc7 {[%emt 0:00:07]} 64. e7 {[%emt 0:00:46]} Re4 {[%emt 0:00:16]} 65. e8=Q {[%emt 0:01:18]} Rxe8 {[%emt 0:00:08]} 66. Rxe8 {[%emt 0:00:02]} b1=Q {[%emt 0:00:07]} 67. Re7+ {[%emt 0:00:13]} Kd8 {[%emt 0:00:08]} 68. Re6 {[%emt 0:00:10]} Qh1+ {[%emt 0:00:05]} 69. Kg3 {[%emt 0:00:05]} Qxd5 {[%emt 0:00:06]} 0-1

[Event "NOR-ch Various 2019"]
[Site "Larvik"]
[Date "2019.07.08"]
[Round "3.28"]
[White "Demac, Elias"]
[Black "Andersen, Lars Even"]
[Result "0-1"]
[ECO "D36"]
[WhiteElo "2215"]
[BlackElo "2314"]
[Annotator "NA"]
[PlyCount "100"]
[EventDate "2019.07.06"]
[EventType "swiss"]
[EventCountry "NOR"]
[SourceTitle "playchess.com"]
[Source "ChessBase"]
[SourceQuality "1"]
[TimeControl "40/5400+30:1800+30"]

1. d4 {[%emt 0:00:00]} Nf6 {[%emt 0:01:54]} 2. c4 {[%emt 0:00:00]} e6 {[%emt 0:00:14]} 3. Nc3 {[%emt 0:00:00]} d5 {[%emt 0:00:28]} 4. cxd5 {[%emt 0:00:00]} exd5 {[%emt 0:00:09]} 5. Bg5 {[%emt 0:00:15]} Nbd7 {[%emt 0:01:25]} 6. e3 {[%emt 0:00:41]} c6 {[%emt 0:04:42]} 7. Bd3 {[%emt 0:03:29]} Be7 {[%emt 0:04:05]} 8. Qc2 {[%emt 0:00:25]} O-O {[%emt 0:01:23]} 9. Nge2 {[%emt 0:00:09]} Re8 {[%emt 0:01:37]} 10. f3 {[%emt 0:00:51]} Nf8 {[%emt 0:05:47]} 11. O-O {[%emt 0:00:23]} Nh5 {[%emt 0:06:14]} 12. Bxe7 {[%emt 0:02:32]} Qxe7 {[%emt 0:01:50]} 13. e4 {[%emt 0:00:13]} dxe4 {[%emt 0:02:08]} 14. fxe4 {[%emt 0:00:17]} Nf6 {[%emt 0:08:21]} 15. h3 {[%emt 0:08:30]} c5 {[%emt 0:16:12]} 16. e5 {[%emt 0:12:17]} cxd4 {[%emt 0:06:22]} 17. exf6 {[%emt 0:00:26]} Qe3+ {[%emt 0:00:11]} 18. Kh1 {[%emt 0:01:15]} dxc3 {[%emt 0:00:56]} 19. fxg7 {[%emt 0:02:38]} Ng6 {[%emt 0:05:21]} 20. Qxc3 {[%emt 0:07:42]} Bxh3 {[%emt 0:08:16]} 21. Bc4 {[%emt 0:02:14]} Bxg2+ {[%emt 0:03:24]} 22. Kxg2 {[%emt 0:00:04]} Qe4+ {[%emt 0:00:49]} 23. Kg1 {[%emt 0:08:39]} Ne5 {[%emt 0:01:40]} 24. Rf4 {[%emt 0:14:27]} Qg6+ {[%emt 0:00:35]} 25. Qg3 {[%emt 0:09:10]} Nxc4 {[%emt 0:01:42]} 26. Qxg6 {[%emt 0:00:05]} hxg6 {[%emt 0:01:14]} 27. Rxc4 {[%emt 0:00:05]} Rxe2 {[%emt 0:00:29]} 28. Rc7 {[%emt 0:00:49]} Rxb2 {[%emt 0:11:39]} 29. Rf1 {[%emt 0:00:05]} f5 {[%emt 0:01:45]} 30. Rf2 {[%emt 0:00:04]} Rxf2 {[%emt 0:00:29]} 31. Kxf2 {[%emt 0:00:05]} Re8 {[%emt 0:01:41]} 32. Rxb7 {[%emt 0:00:26]} a5 {[%emt 0:00:13]} 33. Ra7 {[%emt 0:02:21]} Re4 {[%emt 0:01:34]} 34. Rxa5 {[%emt 0:00:08]} Kxg7 {[%emt 0:00:08]} 35. a4 {[%emt 0:03:59]} Kh6 {[%emt 0:00:54]} 36. Ra8 {[%emt 0:00:40]} Kg5 {[%emt 0:00:35]} 37. a5 {[%emt 0:04:39]} Kf4 {[%emt 0:00:29]} 38. a6 {[%emt 0:00:23]} Ra4 {[%emt 0:00:12]} 39. a7 {[%emt 0:01:41]} Ra2+ {[%emt 0:00:33]} 40. Kg1 {[%emt 0:00:05]} g5 {[%emt 0:00:19]} 41. Kf1 {[%emt 0:30:34]} g4 {[%emt 0:30:15]} 42. Ke1 {[%emt 0:00:23]} g3 {[%emt 0:00:24]} 43. Kd1 {[%emt 0:01:15]} g2 {[%emt 0:00:40]} 44. Rg8 {[%emt 0:00:07]} Rxa7 {[%emt 0:00:12]} 45. Rxg2 {[%emt 0:00:15]} Ra1+ {[%emt 0:00:07]} 46. Ke2 {[%emt 0:00:04]} Ra2+ {[%emt 0:00:05]} 47. Kf1 {[%emt 0:00:12]} Rxg2 {[%emt 0:00:04]} 48. Kxg2 {[%emt 0:00:03]} Ke3 {[%emt 0:00:06]} 49. Kf1 {[%emt 0:00:25]} Kf3 {[%emt 0:00:25]} 50. Kg1 {[%emt 0:00:06]} Ke2 {[%emt 0:00:13]} 0-1

[Event "NOR-ch Various 2019"]
[Site "Larvik"]
[Date "2019.07.08"]
[Round "3.29"]
[White "Hobber, Anders"]
[Black "Holleland, Sigve"]
[Result "1-0"]
[ECO "D05"]
[WhiteElo "2294"]
[BlackElo "2092"]
[Annotator "NA"]
[PlyCount "73"]
[EventDate "2019.07.06"]
[EventType "swiss"]
[EventCountry "NOR"]
[SourceTitle "playchess.com"]
[Source "ChessBase"]
[SourceQuality "1"]
[TimeControl "40/5400+30:1800+30"]

1. d4 {[%emt 0:00:00]} Nf6 {[%emt 0:00:00]} 2. Nf3 {[%emt 0:00:39]} d5 {[%emt 0:01:04]} 3. e3 {[%emt 0:01:05]} c5 {[%emt 0:03:26]} 4. c3 {[%emt 0:01:49]} Bf5 {[%emt 0:04:15]} 5. dxc5 {[%emt 0:03:36]} e6 {[%emt 0:01:53]} 6. b4 {[%emt 0:03:28]} Be7 {[%emt 0:03:40]} 7. Bb2 {[%emt 0:11:18]} O-O {[%emt 0:00:47]} 8. Nbd2 {[%emt 0:01:54]} a5 {[%emt 0:03:24]} 9. a3 {[%emt 0:02:35]} b6 {[%emt 0:03:39]} 10. cxb6 {[%emt 0:02:31]} Qxb6 {[%emt 0:00:04]} 11. Be2 {[%emt 0:01:46]} Nc6 {[%emt 0:05:14]} 12. O-O {[%emt 0:03:03]} e5 {[%emt 0:06:30]} 13. Rc1 {[%emt 0:31:18]} e4 {[%emt 0:04:27]} 14. Nd4 {[%emt 0:03:13]} Nxd4 {[%emt 0:00:48]} 15. exd4 {[%emt 0:00:14]} Ne8 {[%emt 0:04:59]} 16. Qb3 {[%emt 0:08:33]} Qg6 {[%emt 0:04:55]} 17. Qxd5 {[%emt 0:06:50]} Nc7 {[%emt 0:02:15]} 18. Qb3 {[%emt 0:01:06]} Ne6 {[%emt 0:07:15]} 19. g3 {[%emt 0:00:49]} Nf4 {[%emt 0:08:17]} 20. Qd1 {[%emt 0:00:56]} Bg5 {[%emt 0:04:10]} 21. Kh1 {[%emt 0:06:50]} Qh6 {[%emt 0:02:21]} 22. Nc4 {[%emt 0:02:23]} Nxe2 23. Qxe2 {[%emt 0:00:02]} Bxc1 {[%emt 0:11:15]} 24. Rxc1 {[%emt 0:02:02]} Qa6 {[%emt 0:05:03]} 25. Qf1 {[%emt 0:00:05]} axb4 {[%emt 0:00:22]} 26. cxb4 {[%emt 0:00:20]} Bg4 {[%emt 0:02:16]} 27. Ne3 {[%emt 0:01:33]} Be2 {[%emt 0:01:03]} 28. Qh3 {[%emt 0:00:21]} f5 {[%emt 0:01:45]} 29. d5 {[%emt 0:00:49]} f4 {[%emt 0:02:20]} 30. Rc7 {[%emt 0:01:07]} Ra7 {[%emt 0:03:13]} 31. Rxa7 {[%emt 0:01:26]} Qxa7 {[%emt 0:00:42]} 32. Qe6+ {[%emt 0:00:02]} Kh8 {[%emt 0:02:16]} 33. Nf5 {[%emt 0:01:06]} fxg3 {[%emt 0:01:03]} 34. hxg3 {[%emt 0:00:27]} Bg4 {[%emt 0:01:17]} 35. Qd6 {[%emt 0:00:46]} Re8 {[%emt 0:00:50]} 36. Bxg7+ {[%emt 0:01:01]} Kg8 {[%emt 0:00:03]} 37. Bd4 {[%emt 0:00:06]} 1-0

[Event "NOR-ch Various 2019"]
[Site "Larvik"]
[Date "2019.07.08"]
[Round "3.30"]
[White "Lund, Gunnar"]
[Black "Laverton, Christian"]
[Result "1/2-1/2"]
[ECO "D02"]
[WhiteElo "2285"]
[BlackElo "2115"]
[Annotator "NA"]
[PlyCount "60"]
[EventDate "2019.07.06"]
[EventType "swiss"]
[EventCountry "NOR"]
[SourceTitle "playchess.com"]
[Source "ChessBase"]
[SourceQuality "1"]
[TimeControl "40/5400+30:1800+30"]

1. d4 {[%emt 0:00:00]} d5 {[%emt 0:00:04]} 2. Bf4 {[%emt 0:00:00]} Nf6 {[%emt 0:01:05]} 3. e3 {[%emt 0:00:02]} e6 {[%emt 0:00:38]} 4. Nf3 {[%emt 0:00:09]} Bd6 {[%emt 0:00:50]} 5. Nbd2 {[%emt 0:00:12]} O-O {[%emt 0:02:09]} 6. Bd3 {[%emt 0:01:10]} Bxf4 {[%emt 0:05:25]} 7. exf4 {[%emt 0:00:06]} c5 {[%emt 0:00:49]} 8. dxc5 {[%emt 0:00:02]} Qc7 {[%emt 0:01:57]} 9. g3 {[%emt 0:04:19]} Qxc5 {[%emt 0:01:15]} 10. O-O {[%emt 0:00:40]} Nc6 {[%emt 0:02:56]} 11. c3 {[%emt 0:04:09]} b5 {[%emt 0:04:19]} 12. Rc1 {[%emt 0:10:15]} Bb7 {[%emt 0:05:02]} 13. b4 {[%emt 0:02:41]} Qb6 {[%emt 0:01:01]} 14. a4 {[%emt 0:02:47]} bxa4 {[%emt 0:03:54]} 15. Qxa4 {[%emt 0:00:37]} Rfc8 {[%emt 0:10:26]} 16. b5 {[%emt 0:07:34]} Nb8 {[%emt 0:06:17]} 17. f5 {[%emt 0:05:19]} Nbd7 {[%emt 0:02:07]} 18. fxe6 {[%emt 0:00:52]} fxe6 {[%emt 0:00:46]} 19. Qd4 {[%emt 0:02:44]} Nc5 {[%emt 0:05:16]} 20. Rfe1 {[%emt 0:03:05]} Nxd3 {[%emt 0:08:44]} 21. Qxd3 {[%emt 0:00:19]} Ne4 {[%emt 0:01:55]} 22. Re2 {[%emt 0:08:34]} Rc5 {[%emt 0:04:57]} 23. Nd4 {[%emt 0:07:29]} e5 {[%emt 0:06:21]} 24. Nc6 {[%emt 0:00:28]} Bxc6 {[%emt 0:08:00]} 25. bxc6 {[%emt 0:00:27]} Nxd2 {[%emt 0:02:06]} 26. Qxd2 {[%emt 0:00:09]} Re8 {[%emt 0:04:06]} 27. Rce1 {[%emt 0:04:43]} e4 {[%emt 0:02:02]} 28. Qa2 {[%emt 0:00:27]} Ra5 {[%emt 0:01:51]} 29. Qd2 {[%emt 0:04:10]} Qxc6 {[%emt 0:01:20]} 30. c4 {[%emt 0:00:26]} Rc5 {[%emt 0:00:32]} 1/2-1/2

[Event "NOR-ch Various 2019"]
[Site "Larvik"]
[Date "2019.07.08"]
[Round "3.31"]
[White "Shehzad, Shazil"]
[Black "Abdrlauf, Elham"]
[Result "1/2-1/2"]
[ECO "B56"]
[WhiteElo "2088"]
[BlackElo "2235"]
[Annotator "NA"]
[PlyCount "61"]
[EventDate "2019.07.06"]
[EventType "swiss"]
[EventCountry "NOR"]
[SourceTitle "playchess.com"]
[Source "ChessBase"]
[SourceQuality "1"]
[TimeControl "40/5400+30:1800+30"]

1. e4 {[%emt 0:03:56]} c5 {[%emt 0:00:00]} 2. Nf3 {[%emt 0:00:06]} d6 {[%emt 0:00:00]} 3. d4 {[%emt 0:00:09]} cxd4 {[%emt 0:00:00]} 4. Nxd4 {[%emt 0:00:07]} Nf6 {[%emt 0:00:00]} 5. Nc3 {[%emt 0:00:06]} e5 {[%emt 0:00:00]} 6. Nb3 {[%emt 0:00:57]} Be7 {[%emt 0:00:00]} 7. f3 {[%emt 0:07:41]} O-O {[%emt 0:00:19]} 8. Be3 {[%emt 0:00:25]} Be6 {[%emt 0:01:03]} 9. Nd5 {[%emt 0:01:09]} Nxd5 {[%emt 0:01:13]} 10. exd5 {[%emt 0:00:58]} Bf5 {[%emt 0:00:14]} 11. Qd2 {[%emt 0:03:33]} a5 {[%emt 0:06:21]} 12. c4 {[%emt 0:08:12]} a4 {[%emt 0:02:20]} 13. Nc1 {[%emt 0:00:16]} Nd7 {[%emt 0:05:08]} 14. Bd3 {[%emt 0:02:08]} Bxd3 {[%emt 0:01:03]} 15. Nxd3 {[%emt 0:00:33]} Qc7 {[%emt 0:01:33]} 16. Rc1 {[%emt 0:00:42]} e4 {[%emt 0:21:39]} 17. fxe4 {[%emt 0:03:37]} Bf6 {[%emt 0:00:09]} 18. O-O {[%emt 0:06:22]} Rfe8 {[%emt 0:02:45]} 19. Nf2 {[%emt 0:04:14]} Nc5 {[%emt 0:01:11]} 20. Qc2 {[%emt 0:01:51]} Re7 {[%emt 0:06:54]} 21. Bxc5 {[%emt 0:10:44]} Qxc5 {[%emt 0:00:19]} 22. Kh1 {[%emt 0:05:47]} a3 {[%emt 0:01:59]} 23. b3 {[%emt 0:01:23]} Rae8 {[%emt 0:01:44]} 24. Qd3 {[%emt 0:06:53]} Bb2 {[%emt 0:06:02]} 25. Rc2 {[%emt 0:02:03]} f5 {[%emt 0:04:32]} 26. Qf3 {[%emt 0:04:30]} g6 {[%emt 0:10:51]} 27. g4 {[%emt 0:02:33]} fxe4 {[%emt 0:20:02]} 28. Nxe4 {[%emt 0:00:49]} Rxe4 {[%emt 0:00:09]} 29. Rxb2 {[%emt 0:00:31]} axb2 {[%emt 0:04:51]} 30. Qf7+ {[%emt 0:00:04]} Kh8 {[%emt 0:00:10]} 31. Qf6+ {[%emt 0:00:02]} 1/2-1/2